bitfinex/quotes_ETHUSD_20260117
["timestamp","ask_amount","ask_price","bid_price","bid_amount"]
[1768618014303,0.00081261,3286.8,3286.2,4.91472776]
[1768618014674,0.00081261,3286.8,3286.3,4.91472776]
[1768618014868,0.00081261,3286.8,3286.3,5.71050333]
[1768618016503,0.00081261,3286.8,3286.4,4.91473866]
[1768618016705,0.00081261,3286.8,3286.5,4.91473866]
[1768618019287,3.04294237,3287.2,3286.6,4.91775308]
[1768618019490,2.88994237,3287.2,3286.8,4.91775308]
[1768618020005,7.85506145,3287.2,3286.8,4.91775308]
[1768618022716,8.00716687,3287.3,3286.8,4.91775308]
[1768618023010,4.96511908,3287.3,3286.8,5.40952839]
[1768618024011,8.00716309,3287.3,3286.8,5.40952839]
[1768618024211,8.00716309,3287.3,3286.8,4.91775308]
[1768618024521,4.96511908,3287.2,3286.8,4.91775308]
[1768618024818,4.96511908,3287.2,3286.4,3.04282497]
[1768618025116,3.04219524,3287.1,3286.4,7.96784763]
[1768618025317,4.96511908,3287.0,3286.4,7.96784763]
[1768618025494,0.001,3286.9,3286.5,0.92666232]
[1768618025696,4.96611908,3286.9,3286.5,0.92666232]
[1768618030536,4.96511908,3286.8,3286.3,0.503]
[1768618030739,4.96511908,3286.8,3286.0,4.93070792]
[1768618030937,4.96511908,3286.8,3286.0,5.43270792]
[1768618031118,4.96511908,3286.6,3286.1,4.93180609]
[1768618033733,8.00782594,3286.6,3286.1,4.93180609]
[1768618037403,4.96511908,3286.5,3286.0,3.54518038]
[1768618038052,4.96511908,3286.5,3286.0,8.48431564]
[1768618038552,4.96511908,3286.7,3286.1,4.94014813]
[1768618039885,4.96511908,3286.7,3286.1,7.98322132]
[1768618040152,8.51054078,3286.9,3286.2,4.94114936]
[1768618041078,4.96611908,3286.9,3286.2,4.94114936]
[1768618042349,4.96611908,3286.9,3286.4,4.94504059]
[1768618043639,0.001,3286.9,3286.4,4.94504059]
[1768618045130,8.13724155,3287.4,3286.6,4.94691927]
[1768618045549,5.0952612,3287.3,3286.6,4.94691927]
[1768618046481,8.13690125,3287.7,3286.8,4.94875505]
[1768618046771,5.0952612,3287.6,3286.8,5.45075505]
[1768618046974,5.0952612,3287.6,3287.0,4.94875505]
[1768618048045,5.0962612,3287.5,3287.0,4.94875505]
[1768618050372,4.9442612,3287.5,3287.0,4.94875505]
[1768618052492,7.98609107,3287.5,3287.0,4.94875505]
[1768618054372,7.98609107,3287.5,3286.9,1.59785646]
[1768618054373,5.23414042,3287.4,3286.9,1.59785646]
[1768618054573,5.23414042,3287.4,3286.8,5.60951079]
[1768618055882,5.23414042,3287.4,3286.8,8.6519752]
[1768618056676,5.23414042,3287.3,3286.8,8.6519752]
[1768618058946,5.23414042,3287.3,3286.8,5.60951079]
[1768618060708,8.27615102,3287.3,3286.8,5.60951079]
[1768618060878,8.27615102,3287.3,3286.9,0.8652034]
[1768618062611,8.27615102,3287.3,3287.1,0.001]
[1768618063506,5.23414042,3287.2,3287.1,0.001]
[1768618065216,5.23414042,3287.4,3287.1,0.001]
[1768618066116,8.27608846,3287.4,3287.1,0.001]
[1768618068036,5.23414042,3287.7,3287.1,5.63071657]
[1768618068204,0.504,3287.8,3287.3,5.11864108]
[1768618068406,3.04356463,3287.8,3287.3,5.11864108]
[1768618068742,3.04356463,3287.8,3287.3,5.98599403]
[1768618069852,0.002,3287.8,3287.3,5.98599403]
[1768618071050,0.002,3287.8,3287.4,5.12009528]
[1768618072748,0.002,3287.8,3287.5,5.12221454]
[1768618078387,0.002,3287.8,3287.3,9.0355661]
[1768618078588,5.20076554,3287.8,3287.4,1.31236985]
[1768618078824,5.20076554,3287.8,3287.2,0.502]
[1768618079353,5.19876554,3287.7,3287.2,0.502]
[1768618081484,5.19876554,3287.6,3287.2,0.502]
[1768618083986,5.19876554,3287.6,3287.2,5.63138598]
[1768618086516,5.19876554,3287.6,3287.5,0.001]
[1768618091332,8.2423549,3287.8,3287.5,0.001]
[1768618092437,5.20076554,3287.8,3287.5,0.001]
[1768618092741,0.002,3287.8,3287.5,0.001]
[1768618093097,3.04354956,3287.8,3287.5,0.001]
[1768618093498,8.2423151,3287.8,3287.5,0.001]
[1768618094239,3.04354956,3287.8,3287.5,0.001]
[1768618094452,8.24041591,3287.7,3287.5,0.001]
[1768618094748,5.19876554,3287.6,3287.5,0.001]
[1768618099577,8.24049811,3287.6,3287.5,0.001]
[1768618102667,5.19876554,3287.6,3287.5,0.001]
[1768618105886,8.24049811,3287.6,3287.5,0.001]
[1768618106381,5.19876554,3287.6,3287.5,0.001]
[1768618107489,8.28692012,3287.8,3287.5,0.001]
[1768618113099,3.04356233,3287.8,3287.5,0.001]
[1768618113307,5.1979766,3287.7,3287.5,0.001]
[1768618114600,5.1979766,3287.6,3287.5,0.001]
[1768618125222,8.24156542,3287.8,3287.5,0.001]
[1768618125515,5.1979766,3287.7,3287.5,0.001]
[1768618127611,8.23961823,3287.7,3287.5,0.001]
[1768618135822,5.40582614,3287.6,3287.5,0.001]
[1768618138020,8.44937367,3287.8,3287.5,0.001]
[1768618151546,5.40582614,3287.7,3287.5,0.001]
[1768618157519,8.44749304,3287.7,3287.5,0.001]
[1768618161009,5.40582614,3287.6,3287.5,0.001]
[1768618161413,5.40582614,3287.6,3287.1,4.91148473]
[1768618161617,5.40582614,3287.6,3287.1,5.7570584]
[1768618162011,5.44384779,3287.6,3287.1,5.7570584]
[1768618162190,5.40582614,3287.6,3287.1,5.7570584]
[1768618167720,8.4475851,3287.6,3287.1,4.91148473]
[1768618169329,8.4475851,3287.6,3287.4,0.001]
[1768618171629,5.40460074,3287.5,3287.1,0.001]
[1768618177030,3.04182616,3287.5,3287.1,0.001]
[1768618177232,5.40460074,3287.4,3287.1,0.001]
[1768618177526,4.91041135,3287.4,3287.1,0.001]
[1768618180107,5.40460074,3287.5,3287.1,0.001]
[1768618180906,5.40460074,3287.5,3287.4,0.001]
[1768618192447,4.94152374,3287.7,3287.4,0.001]
[1768618195660,4.94152374,3287.6,3287.4,0.001]
[1768618196754,7.98327782,3287.6,3287.4,0.001]
[1768618197418,4.94152374,3287.6,3287.4,0.001]
[1768618198122,7.98509563,3287.8,3287.4,5.06821889]
[1768618198739,0.502,3287.7,3287.4,5.06821889]
[1768618201219,7.98509563,3287.8,3287.4,5.06821889]
[1768618201457,8.48709563,3287.8,3287.4,5.06821889]
[1768618204359,7.98509563,3287.8,3287.4,5.06821889]
[1768618204545,8.48709563,3287.8,3287.4,5.06821889]
[1768618204855,0.504,3287.8,3287.4,5.06821889]
[1768618205064,0.002,3287.5,3287.4,5.06821889]
[1768618208170,0.002,3287.5,3287.4,0.001]
[1768618224891,0.002,3287.5,3287.4,5.36924559]
[1768618225569,5.02472669,3287.9,3287.4,5.36924559]
[1768618230805,5.02472669,3287.9,3287.4,3.04290746]
[1768618231012,5.02472669,3287.9,3287.5,5.0152712]
[1768618232114,8.27722173,3288.1,3287.5,5.0152712]
[1768618232283,8.77922173,3288.1,3287.5,5.82108907]
[1768618233282,8.27722173,3288.1,3287.5,5.82108907]
[1768618233484,8.27722173,3288.1,3287.6,5.0152712]
[1768618233717,3.04230289,3288.1,3287.6,5.0152712]
[1768618236824,0.001,3288.1,3287.6,5.0152712]
[1768618237023,0.001,3288.1,3287.7,5.68394857]
[1768618238020,5.23591884,3288.1,3287.7,5.68394857]
[1768618238222,5.23591884,3288.1,3287.7,5.0152712]
[1768618239225,3.04136253,3288.0,3287.7,5.0152712]
[1768618240626,3.04136253,3288.0,3287.9,0.001]
[1768618244522,3.04229652,3288.1,3287.9,0.001]
[1768618245228,0.00080523,3288.2,3287.9,0.001]
[1768618245229,2.89101685,3288.2,3287.9,5.0162712]
[1768618245399,2.89101685,3288.2,3287.9,5.51789832]
[1768618245599,2.89101685,3288.2,3287.9,0.50262712]
[1768618249724,2.89101685,3288.2,3287.9,5.51789832]
[1768618250109,2.89101685,3288.2,3287.9,0.50262712]
[1768618251922,2.89101685,3288.2,3288.0,5.64428993]
[1768618252421,2.89101685,3288.2,3287.9,0.001]
[1768618252825,2.89301685,3288.2,3287.9,0.001]
[1768618255353,5.19456022,3288.1,3287.9,0.001]
[1768618257435,8.23583404,3288.1,3287.9,0.001]
[1768618257735,5.19456022,3288.0,3287.9,0.001]
[1768618260440,3.04127382,3288.1,3287.9,0.001]
[1768618261560,8.2377787,3288.2,3287.9,0.001]
[1768618263358,0.002,3288.2,3287.9,0.001]
[1768618263531,0.002,3288.2,3287.9,5.0935001]
[1768618263732,0.002,3288.2,3287.9,5.90701358]
[1768618264257,3.03899971,3288.4,3288.0,5.0925001]
[1768618265030,3.03899971,3288.4,3288.2,0.001]
[1768618265218,3.95403283,3288.5,3288.2,0.001]
[1768618271355,0.91313273,3288.5,3288.2,0.001]
[1768618271851,3.95408314,3288.5,3288.2,0.001]
[1768618273637,3.04195041,3288.5,3288.2,0.001]
[1768618275556,3.04195041,3288.5,3288.2,5.0935001]
[1768618276871,0.001,3288.5,3288.2,5.0935001]
[1768618277761,0.001,3288.5,3288.2,0.001]
[1768618279368,0.001,3288.5,3288.2,5.0935001]
[1768618280342,0.001,3288.5,3288.2,5.90697559]
[1768618282390,0.001,3288.5,3288.3,5.41437243]
[1768618282677,5.19456022,3288.8,3288.3,5.41437243]
[1768618282848,0.50480605,3288.9,3288.3,5.41437243]
[1768618283049,0.91201627,3288.7,3288.3,5.41437243]
[1768618283249,0.91201627,3288.7,3288.4,6.34137227]
[1768618284384,3.04334907,3288.9,3288.4,6.34137227]
[1768618284682,3.95535147,3288.9,3288.4,6.34137227]
[1768618284980,0.91480845,3288.9,3288.4,6.34137227]
[1768618285151,0.00280605,3288.9,3288.4,6.34137227]
[1768618285350,0.91476687,3288.9,3288.6,5.41437243]
[1768618287348,0.00280605,3288.9,3288.6,5.41437243]
[1768618288376,0.00280605,3288.9,3288.7,5.41437243]
[1768618295088,8.15484683,3289.2,3288.5,3.98012262]
[1768618295089,0.002,3289.2,3288.5,3.98012262]
[1768618295290,5.11257782,3289.3,3288.8,5.08298457]
[1768618295474,5.11257782,3289.3,3288.9,0.81236533]
[1768618297070,4.82828766,3289.3,3288.9,0.81236533]
[1768618298183,0.91185548,3289.5,3288.9,8.93587926]
[1768618298184,3.95184444,3289.5,3288.9,8.93587926]
[1768618298375,5.11257782,3289.5,3288.9,8.93587926]
[1768618298778,5.11257782,3289.4,3288.9,5.8953499]
[1768618298999,5.11257782,3289.4,3289.0,0.9437932]
[1768618300699,5.11257782,3289.4,3289.2,0.001]
[1768618308896,5.11257782,3289.3,3289.2,0.001]
[1768618309102,5.11257782,3289.3,3288.8,3.54257325]
[1768618309296,5.11257782,3289.3,3288.8,8.62555782]
[1768618309500,5.11257782,3289.3,3288.9,0.86255578]
[1768618309721,5.11257782,3289.3,3288.9,5.94554035]
[1768618313008,5.11257782,3289.3,3289.2,0.001]
[1768618313202,3.04001375,3289.5,3289.2,5.20880101]
[1768618313535,8.16584202,3289.5,3289.2,0.001]
[1768618317012,3.04001375,3289.5,3289.2,0.001]
[1768618320442,9.07851913,3289.6,3289.2,0.001]
[1768618321159,3.95269086,3289.6,3289.2,5.20880101]
[1768618324146,5.12582827,3289.5,3289.2,0.001]
[1768618324853,3.04006809,3289.4,3289.2,0.001]
[1768618325351,5.12782827,3289.3,3289.2,0.001]
[1768618326631,0.002,3289.3,3289.2,0.001]
[1768618326831,0.002,3289.3,3289.2,5.20880101]
[1768618327040,0.002,3289.3,3289.2,5.72968111]
[1768618332067,3.04090985,3289.6,3289.2,5.72968111]
[1768618332250,3.04090985,3289.6,3289.2,5.20880101]
[1768618332439,0.001,3289.6,3289.2,5.20880101]
[1768618337632,0.002,3289.3,3289.2,5.20880101]
[1768618339159,0.002,3289.3,3289.2,0.001]
[1768618339663,5.12782827,3289.3,3289.2,0.001]
[1768618339874,5.12782827,3289.3,3288.9,3.04047775]
[1768618340169,5.12582827,3289.8,3289.1,5.20780101]
[1768618340340,3.03965821,3289.9,3289.1,5.20780101]
[1768618340535,5.12582827,3289.9,3289.3,5.20780101]
[1768618342684,5.12582827,3289.9,3289.3,3.04006881]
[1768618342901,5.12582827,3289.9,3289.4,5.60631417]
[1768618343386,5.42824366,3289.8,3289.4,5.60631417]
[1768618343555,5.42824366,3289.8,3289.4,0.35420688]
[1768618343754,5.42824366,3289.8,3289.2,0.502]
[1768618343755,5.42824366,3289.8,3289.2,5.75410729]
[1768618344188,5.42824366,3289.8,3289.3,3.04015695]
[1768618346251,5.42824366,3289.8,3289.3,8.29226424]
[1768618348692,5.42824366,3289.7,3289.2,3.54221781]
[1768618348988,5.42824366,3289.7,3289.2,0.502]
[1768618349186,5.42824366,3289.7,3289.0,4.30628432]
[1768618349397,5.42824366,3289.7,3289.0,0.85624778]
[1768618349398,5.46624104,3289.7,3289.0,0.85624778]
[1768618349563,5.42824366,3289.7,3289.6,0.001]
[1768618349763,5.42824366,3289.6,3289.0,3.04043065]
[1768618350069,5.42824366,3289.6,3289.1,3.04033644]
[1768618352100,5.42824366,3289.6,3289.0,3.04043782]
[1768618356564,5.14317398,3289.5,3288.9,3.54249677]
[1768618358117,5.14317398,3289.5,3288.9,6.58302703]
[1768618358313,5.14317398,3289.5,3289.0,0.6583027]
[1768618358515,5.14317398,3289.5,3289.1,3.04034538]
[1768618359519,5.14317398,3289.8,3289.2,5.42885687]
[1768618361588,5.14317398,3289.8,3289.3,3.04016052]
[1768618362124,5.14317398,3289.8,3289.3,8.46901739]
[1768618362424,5.14317398,3289.8,3289.3,9.62004253]
[1768618364106,3.03954829,3290.0,3289.4,5.42885687]
[1768618364107,8.18272227,3290.0,3289.4,5.42885687]
[1768618364631,5.14317398,3290.0,3289.4,5.42885687]
[1768618365922,5.14317398,3290.0,3289.5,3.03997568]
[1768618366128,5.14317398,3290.0,3289.5,8.46883255]
[1768618367133,5.14317398,3290.0,3289.5,5.42885687]
[1768618368897,8.18269301,3290.0,3289.5,5.42885687]
[1768618369096,5.14317398,3290.0,3289.5,5.42885687]
[1768618369598,0.9116255,3290.4,3289.5,5.42885687]
[1768618369599,4.83440516,3290.8,3290.0,0.19122464]
[1768618369801,4.83440516,3290.8,3290.1,5.42885687]
[1768618370005,4.83440516,3290.8,3290.0,0.19122464]
[1768618370206,4.83440516,3290.8,3290.1,0.91139286]
[1768618370496,4.83440516,3290.8,3290.2,5.42885687]
[1768618370703,4.83440516,3290.8,3290.2,5.99086502]
[1768618371131,4.83440516,3290.8,3290.3,3.03923654]
[1768618373196,4.83440516,3290.8,3290.3,8.17102738]
[1768618373396,4.83440516,3290.8,3290.3,8.67302738]
[1768618373595,5.23316362,3291.0,3290.4,5.13179084]
[1768618373831,0.002,3290.8,3290.4,6.35922719]
[1768618375733,5.38235675,3290.8,3290.4,4.26657723]
[1768618376132,5.38235675,3290.8,3290.4,1.22743635]
[1768618377131,5.38235675,3290.8,3290.3,0.91136241]
[1768618377332,5.38235675,3290.8,3290.3,0.502]
[1768618377633,5.38035675,3290.7,3290.3,0.502]
[1768618380431,5.38035675,3290.6,3290.3,0.502]
[1768618380758,5.38035675,3290.6,3290.2,1.47340101]
[1768618380958,5.38035675,3290.6,3290.2,1.97540101]
[1768618383650,5.38035675,3290.6,3290.3,1.01465599]
[1768618384150,5.22182673,3290.6,3290.3,1.01465599]
[1768618386352,5.22182673,3290.6,3290.5,0.001]
[1768618388060,5.38235675,3290.8,3290.5,0.001]
[1768618389454,8.41922386,3290.7,3290.5,0.001]
[1768618389855,5.38035675,3290.6,3290.5,0.001]
[1768618395069,8.41931621,3290.6,3290.5,0.001]
[1768618395622,5.38035675,3290.6,3290.5,0.001]
[1768618396975,8.41931621,3290.6,3290.5,0.001]
[1768618397125,9.56532669,3290.6,3290.5,0.001]
[1768618397328,5.38035675,3290.5,3290.0,0.502]
[1768618399144,3.03895946,3290.6,3290.0,0.502]
[1768618399145,5.38035675,3290.4,3290.0,0.502]
[1768618400056,5.38035675,3290.4,3289.9,3.03960461]
[1768618400954,5.09626945,3290.4,3289.9,3.03960461]
[1768618401254,5.09626945,3290.4,3289.9,4.59892208]
[1768618409057,5.09626945,3290.4,3289.9,1.55931747]
[1768618409271,5.09979778,3290.3,3289.8,3.03965712]
[1768618409553,5.09979778,3290.3,3290.2,0.001]
[1768618418296,4.81574647,3290.3,3290.2,0.001]
[1768618430595,4.85373692,3290.3,3290.2,0.001]
[1768618431403,4.81574647,3290.3,3290.2,0.001]
[1768618434209,4.53156578,3290.3,3290.2,0.001]
[1768618440406,4.53156578,3290.3,3289.5,0.502]
[1768618440407,5.22475594,3290.2,3289.5,0.502]
[1768618440711,5.22475594,3290.2,3289.5,5.83789612]
[1768618440915,5.22475594,3290.2,3289.7,8.37568181]
[1768618441089,5.22475594,3290.2,3289.8,5.33589612]
[1768618442414,8.76593819,3290.4,3289.8,5.33589612]
[1768618444920,5.22475594,3290.3,3289.8,5.33589612]
[1768618445121,5.22475594,3290.3,3290.1,0.001]
[1768618445916,8.26399457,3290.3,3290.1,0.001]
[1768618449541,5.22475594,3290.3,3290.1,0.001]
[1768618450674,3.03917807,3290.4,3290.1,0.001]
[1768618451433,8.26393401,3290.4,3290.1,0.001]
[1768618452104,5.22475594,3290.3,3290.1,0.001]
[1768618456814,8.76580857,3290.5,3290.1,0.001]
[1768618457546,5.22475594,3290.4,3290.1,0.001]
[1768618459530,8.26392493,3290.4,3290.1,0.001]
[1768618460566,5.22475594,3290.3,3290.1,0.001]
[1768618464756,3.03916899,3290.4,3290.1,0.001]
[1768618467685,8.50036405,3290.5,3290.1,0.001]
[1768618474708,3.54109266,3290.5,3290.1,5.17838885]
[1768618475995,3.5790808,3290.5,3290.1,5.17838885]
[1768618476289,8.50185344,3290.5,3290.1,5.17838885]
[1768618476598,8.4638653,3290.5,3290.1,5.17838885]
[1768618478193,3.54109266,3290.5,3290.1,0.001]
[1768618478497,4.92277264,3290.4,3290.1,0.001]
[1768618478869,4.92277264,3290.2,3289.6,8.21724386]
[1768618479394,4.92277264,3290.2,3289.6,9.39317261]
[1768618480494,3.04132962,3290.2,3289.6,9.39317261]
[1768618480799,4.92277264,3290.1,3289.6,9.39317261]
[1768618481397,4.92277264,3290.1,3289.6,5.17738885]
[1768618481600,4.92277264,3290.1,3289.5,5.17738885]
[1768618482106,4.92277264,3290.1,3289.4,3.04003527]
[1768618482404,4.92277264,3290.0,3289.4,3.04003527]
[1768618484607,4.92277264,3290.0,3289.4,8.21742412]
[1768618487129,4.92277264,3290.0,3289.4,5.17738885]
[1768618487130,4.92277264,3289.9,3289.4,5.17738885]
[1768618489438,4.96076771,3289.9,3289.4,5.17738885]
[1768618490716,4.92277264,3289.8,3289.4,5.17738885]
[1768618492932,4.92277264,3289.8,3289.7,0.001]
[1768618493107,5.71901053,3289.8,3289.7,0.001]
[1768618495732,4.92277264,3289.8,3289.7,0.001]
[1768618499443,5.0455715,3289.9,3289.7,0.001]
[1768618500467,8.08503188,3290.1,3289.7,0.001]
[1768618500767,5.0455715,3290.1,3289.7,0.001]
[1768618501264,8.08499885,3290.1,3289.7,0.001]
[1768618504264,3.03942735,3290.1,3289.7,5.44466161]
[1768618504979,3.54337177,3290.2,3289.7,5.44466161]
[1768618505184,1.162818,3290.1,3289.7,5.44466161]
[1768618507842,1.20081076,3290.1,3289.7,5.44466161]
[1768618508257,1.162818,3290.1,3289.7,5.44466161]
[1768618508873,8.08694327,3290.2,3289.7,5.44466161]
[1768618509477,0.03799276,3290.1,3289.7,5.44466161]
[1768618509671,8.08694327,3290.2,3289.7,5.44466161]
[1768618510182,5.0475715,3290.2,3289.7,5.44466161]
[1768618510383,0.002,3290.2,3289.7,5.44466161]
[1768618510589,5.0475715,3290.2,3289.7,5.44466161]
[1768618510884,3.04134442,3290.2,3289.7,5.44466161]
[1768618513150,5.0475715,3290.2,3289.7,5.44466161]
[1768618513986,0.002,3290.2,3289.7,5.44466161]
[1768618516895,5.0475715,3290.2,3289.7,5.44466161]
[1768618517403,5.0475715,3290.2,3290.0,0.001]
[1768618517708,0.8086808,3290.1,3290.0,0.001]
[1768618520001,5.0475715,3290.2,3290.0,0.001]
[1768618522971,0.002,3290.2,3290.0,0.001]
[1768618528516,5.42246525,3290.2,3290.0,0.001]
[1768618529924,8.46179609,3290.2,3290.0,0.001]
[1768618530228,8.42380448,3290.2,3290.0,0.001]
[1768618530528,0.03799276,3290.1,3290.0,0.001]
[1768618533109,8.42380448,3290.2,3290.0,0.001]
[1768618533728,0.002,3290.2,3290.0,0.001]
[1768618534029,0.03999161,3290.2,3290.0,0.001]
[1768618535329,0.002,3290.2,3290.0,5.16892227]
[1768618537639,0.002,3290.2,3290.0,0.001]
[1768618538502,5.06301391,3290.2,3290.0,0.001]
[1768618538834,0.002,3290.2,3290.0,0.001]
[1768618540331,0.002,3290.2,3290.0,5.16892227]
[1768618540735,0.002,3290.2,3290.0,0.001]
[1768618551346,0.002,3290.2,3290.0,5.16892227]
[1768618552630,0.002,3290.2,3290.0,0.001]
[1768618555429,0.002,3290.2,3290.0,5.06546768]
[1768618564259,0.002,3290.2,3290.0,0.001]
[1768618570682,5.80067181,3290.2,3289.7,0.001]
[1768618570982,0.002,3290.2,3289.7,5.06546768]
[1768618572678,0.002,3290.2,3289.7,3.04077495]
[1768618572880,0.002,3290.2,3289.8,5.06446768]
[1768618575355,0.002,3290.2,3290.0,0.001]
[1768618575656,0.002,3290.2,3290.0,5.06546768]
[1768618576956,0.002,3290.2,3290.0,0.001]
[1768618577287,0.002,3290.2,3290.0,5.06546768]
[1768618582198,0.002,3290.2,3290.0,0.001]
[1768618584099,5.21868244,3290.2,3290.0,0.001]
[1768618586542,5.21668244,3290.1,3290.0,0.001]
[1768618590635,0.002,3290.2,3290.0,0.001]
[1768618590837,5.18516812,3290.2,3290.0,0.001]
[1768618591937,6.31151377,3290.2,3289.7,0.001]
[1768618592808,5.18316812,3290.0,3289.7,0.001]
[1768618595268,8.26068013,3290.0,3289.7,0.001]
[1768618595436,5.18316812,3289.9,3289.7,0.001]
[1768618604716,5.18316812,3289.8,3289.7,0.001]
[1768618605569,6.00544272,3289.8,3289.7,0.001]
[1768618610727,5.18316812,3289.8,3289.7,0.001]
[1768618615920,4.95552995,3289.9,3289.7,0.001]
[1768618616098,4.99352502,3289.9,3289.7,0.001]
[1768618617942,4.95552995,3289.9,3289.7,0.001]
[1768618630456,3.0395529,3290.0,3289.7,0.001]
[1768618633454,8.49699322,3290.1,3289.7,0.001]
[1768618633652,2.04003764,3290.2,3289.7,5.30367778]
[1768618633653,5.07940644,3290.2,3289.7,5.30367778]
[1768618633859,4.4930524,3290.2,3289.7,5.30367778]
[1768618634729,4.4930524,3290.2,3290.0,0.001]
[1768618639463,3.9910524,3290.2,3290.0,0.001]
[1768618640865,8.94658235,3290.2,3290.0,0.001]
[1768618641077,0.94485824,3290.1,3290.0,0.001]
[1768618645177,0.91369199,3290.2,3290.0,0.001]
[1768618645378,0.002,3290.2,3290.0,0.001]
[1768618646051,0.002,3290.2,3290.0,4.99162764]
[1768618668131,0.002,3290.2,3290.0,8.03109328]
[1768618668332,0.002,3290.5,3290.1,5.11507972]
[1768618668495,0.002,3290.5,3290.1,5.93063426]
[1768618673495,0.002,3290.5,3290.1,8.97004854]
[1768618673794,0.002,3290.5,3290.1,5.93063426]
[1768618674352,0.002,3290.5,3290.1,8.97004085]
[1768618674550,0.002,3290.5,3290.2,5.21341143]
[1768618674802,0.002,3290.5,3290.3,0.90683726]
[1768618677104,0.002,3290.5,3290.3,6.12024869]
[1768618679359,8.04384245,3290.9,3290.4,5.21341143]
[1768618680175,3.03869632,3290.9,3290.4,5.21341143]
[1768618680474,5.15530844,3290.8,3290.4,5.21341143]
[1768618680675,8.1941151,3290.8,3290.4,5.21341143]
[1768618681024,8.1941151,3290.8,3290.3,0.90683726]
[1768618681204,8.1941151,3290.8,3290.2,5.21341143]
[1768618681376,8.0439549,3290.8,3290.2,5.21341143]
[1768618681722,8.04195279,3290.8,3290.2,5.21341143]
[1768618687203,5.15530844,3290.7,3290.2,5.21341143]
[1768618688019,8.19417994,3290.7,3290.2,5.21341143]
[1768618688220,8.19417994,3290.7,3290.3,0.87547956]
[1768618692918,8.19417994,3290.7,3290.5,0.001]
[1768618696434,5.15530844,3290.6,3290.5,0.001]
[1768618696798,5.15530844,3290.7,3290.5,0.001]
[1768618700236,8.19420219,3290.7,3290.5,0.001]
[1768618702843,0.03798699,3290.6,3290.5,0.001]
[1768618703910,8.19420219,3290.7,3290.5,0.001]
[1768618704109,0.03798699,3290.6,3290.5,0.001]
[1768618704546,8.36393125,3290.6,3290.5,0.001]
[1768618704748,8.32594426,3290.6,3290.5,0.001]
[1768618706444,5.2869848,3290.5,3290.0,0.001]
[1768618706614,5.32497294,3290.5,3290.0,0.30886231]
[1768618707025,5.32497294,3290.5,3290.0,0.001]
[1768618710541,5.07377948,3290.4,3290.0,0.001]
[1768618717154,5.07377948,3290.4,3290.3,0.001]
[1768618732980,5.04416239,3290.5,3290.3,0.001]
[1768618762714,3.95057852,3290.6,3290.3,0.001]
[1768618762910,3.98856551,3290.6,3290.3,0.001]
[1768618763222,0.91157564,3290.6,3290.3,5.24267564]
[1768618765907,0.91157564,3290.6,3290.3,0.001]
[1768618766250,0.94956263,3290.6,3290.3,0.001]
[1768618766428,0.91157564,3290.6,3290.3,0.001]
[1768618777503,3.95053864,3290.6,3290.3,0.001]
[1768618777805,0.91157564,3290.6,3290.3,0.001]
[1768618782249,3.95053987,3290.6,3290.3,0.001]
[1768618783649,0.91157564,3290.6,3290.3,0.001]
[1768618787144,3.95054515,3290.6,3290.3,0.001]
[1768618787528,9.2287209,3290.6,3290.3,0.001]
[1768618788959,5.27817575,3290.5,3290.3,0.001]
[1768618789150,5.27817575,3290.5,3290.0,5.24929965]
[1768618789341,3.54096951,3290.6,3290.0,5.24929965]
[1768618789540,0.91159503,3290.4,3290.0,5.24929965]
[1768618789728,5.27817575,3290.8,3290.0,5.24929965]
[1768618789922,8.31697528,3290.8,3290.0,6.38216631]
[1768618790123,0.91155071,3290.6,3290.0,6.38216631]
[1768618791448,0.91155071,3290.6,3290.2,5.24829965]
[1768618791645,9.09768336,3290.6,3290.2,5.24829965]
[1768618791951,9.09768336,3290.6,3290.0,0.001]
[1768618792133,0.03798814,3290.5,3290.0,5.23637263]
[1768618792451,9.09768336,3290.6,3290.0,5.23637263]
[1768618795575,5.14714999,3290.5,3290.0,0.001]
[1768618795863,5.18513813,3290.5,3290.0,0.001]
[1768618796948,5.14714999,3290.5,3290.0,0.001]
[1768618798670,0.91155071,3290.6,3290.1,5.23537263]
[1768618799266,6.0587007,3290.6,3290.1,5.23537263]
[1768618799745,9.09770209,3290.6,3290.3,0.001]
[1768618799944,8.18615138,3290.6,3290.3,0.001]
[1768618800258,0.91153963,3290.5,3290.3,0.001]
[1768618800557,0.91153963,3290.5,3290.3,5.23637263]
[1768618806151,0.002,3290.6,3290.3,5.23637263]
[1768618806781,0.91353132,3290.6,3290.3,5.23637263]
[1768618807149,0.002,3290.6,3290.3,5.23637263]
[1768618819187,0.002,3290.6,3290.3,0.001]
[1768618820668,5.14914999,3290.6,3290.3,0.001]
[1768618820874,5.14611089,3290.6,3290.3,0.001]
[1768618821784,8.18508146,3290.6,3290.3,0.001]
[1768618827192,3.03897057,3290.6,3290.3,0.001]
[1768618827594,8.10679648,3290.7,3290.3,0.001]
[1768618836797,8.10679648,3290.7,3290.3,4.98725903]
[1768618836998,8.10679648,3290.7,3290.6,0.001]
[1768618844232,3.03890399,3290.7,3290.6,0.001]
[1768618847353,3.95039377,3290.7,3290.6,0.001]
[1768618850888,3.95039377,3290.7,3290.3,4.98725903]
[1768618854411,4.86753448,3290.6,3290.3,0.001]
[1768618856408,3.03905181,3290.5,3290.3,0.001]
[1768618861032,4.86753448,3290.4,3290.0,0.001]
[1768618862231,6.98965156,3290.5,3290.0,0.001]
[1768618862232,4.86753448,3290.2,3290.0,0.001]
[1768618867530,5.77908242,3290.2,3290.0,0.001]
[1768618880971,5.776043,3290.2,3290.0,0.001]
[1768618888774,4.91519102,3290.1,3290.0,0.001]
[1768618889140,5.82681652,3290.1,3290.0,0.001]
[1768618898760,0.9116255,3290.1,3290.0,0.001]
[1768618899503,8.73301187,3290.1,3290.0,0.001]
[1768618899682,9.6063039,3290.1,3289.7,4.84644056]
[1768618900086,8.6946784,3290.1,3289.7,0.001]
[1768618900395,0.9116255,3290.0,3289.7,0.001]
[1768618905306,3.95115372,3290.0,3289.7,0.001]
[1768618905819,3.03952822,3290.0,3289.7,0.001]
[1768618905983,0.91164766,3289.9,3289.7,0.001]
[1768618911799,5.76645024,3289.9,3289.7,0.001]